fUST/lending_fUST_20241205
["ID","MTS","AMOUNT","RATE_DAILY","PERIOD"]
[344336243,1733352633174,-500.0,0.00024657,7]
[344336245,1733352633184,-500.0,0.00024657,7]
[344336247,1733352633195,-500.0,0.00024657,7]
[344336249,1733352633205,-500.0,0.00024657,7]
[344336251,1733352633215,-500.0,0.00024657,7]
[344336253,1733352633227,-500.0,0.00024657,7]
[344336255,1733352633237,-500.0,0.00024657,7]
[344336257,1733352633248,-500.0,0.00024657,7]
[344336259,1733352633259,-500.0,0.00024657,7]
[344336261,1733352633269,-500.0,0.00024657,7]
[344336263,1733352633279,-500.0,0.00024657,7]
[344336265,1733352633288,-500.0,0.00024657,7]
[344336267,1733352633298,-500.0,0.00024657,7]
[344336283,1733352633451,-500.0,0.00024657,7]
[344336285,1733352633463,-500.0,0.00024657,7]
[344336288,1733352633474,-500.0,0.00024657,7]
[344336290,1733352633487,-500.0,0.00024657,7]
[344336292,1733352633498,-500.0,0.00024657,7]
[344336294,1733352633508,-672.62,0.00024657,7]
[344336295,1733352633519,-500.0,0.00024657,7]
[344336297,1733352633529,-500.0,0.00024657,7]
[344336299,1733352633539,-248.41269905,0.00024657,7]
[344336301,1733352633549,-500.0,0.00024657,7]
[344336303,1733352633559,-500.0,0.00024657,7]
[344336305,1733352633569,-500.0,0.00024657,7]
[344336307,1733352633580,-500.0,0.00024657,7]
[344336309,1733352633589,-500.0,0.00024657,7]
[344336311,1733352633599,-500.0,0.00024657,7]
[344336313,1733352633610,-500.0,0.00024657,7]
[344336315,1733352633620,-500.0,0.00024657,7]
[344336317,1733352633630,-500.0,0.00024657,7]
[344336319,1733352633640,-500.0,0.00024657,7]
[344336321,1733352633650,-500.0,0.00024657,7]
[344336323,1733352633660,-442.64545744,0.00024657,7]
[344336325,1733352633674,-574.01,0.00024657,7]
[344336327,1733352633686,-500.0,0.00024657,7]
[344336329,1733352633695,-500.0,0.00024657,7]
[344336331,1733352633706,-501.71384872,0.00024657,7]
[344336333,1733352633716,-500.0,0.00024657,7]
[344336335,1733352633726,-500.0,0.00024657,7]
[344336337,1733352633736,-500.0,0.00024657,7]
[344336339,1733352633746,-179.23744744,0.00024657,7]
[344336341,1733352633755,-500.0,0.00024657,7]
[344336343,1733352633765,-500.0,0.00024657,7]
[344336345,1733352633775,-500.0,0.00024657,7]
[344336347,1733352633785,-500.0,0.00024657,7]
[344336349,1733352633794,-500.0,0.00024657,7]
[344336351,1733352633804,-500.0,0.00024657,7]
[344336353,1733352633814,-4270.46,0.00024657,7]
[344336355,1733352633824,-500.0,0.00024657,7]
[344336357,1733352633833,-500.0,0.00024657,7]
[344336359,1733352633843,-500.0,0.00024657,7]
[344336361,1733352633853,-2269.79,0.00024657,7]
[344336363,1733352633862,-500.0,0.00024657,7]
[344336365,1733352633872,-800.81,0.00024657,7]
[344336367,1733352633881,-200.0,0.00024657,7]
[344336369,1733352633892,-500.0,0.00024657,7]
[344336370,1733352633902,-500.0,0.00024657,7]
[344336372,1733352633912,-1767.39,0.00024657,7]
[344336374,1733352633923,-500.0,0.00024657,7]
[344336376,1733352633933,-500.0,0.00024657,7]
[344336378,1733352633942,-500.0,0.00024657,7]
[344336380,1733352633952,-500.0,0.00024657,7]
[344336382,1733352633962,-607.5,0.00024657,7]
[344336384,1733352633971,-500.0,0.00024657,7]
[344336386,1733352633981,-1534.08,0.00024657,7]
[344336388,1733352633991,-500.0,0.00024657,7]
[344336390,1733352634000,-500.0,0.00024657,7]
[344336392,1733352634010,-500.0,0.00024657,7]
[344336394,1733352634019,-500.0,0.00024657,7]
[344336396,1733352634029,-500.0,0.00024657,7]
[344336398,1733352634039,-500.0,0.00024657,7]
[344336400,1733352634048,-230.5717144,0.00024657,7]
[344336401,1733352634058,-500.0,0.00024657,7]
[344336403,1733352634067,-500.0,0.00024657,7]
[344336405,1733352634077,-500.0,0.00024657,7]
[344336407,1733352634087,-500.0,0.00024657,7]
[344336409,1733352634097,-755.49,0.00024657,7]
[344336411,1733352634107,-500.0,0.00024657,7]
[344336413,1733352634116,-500.0,0.00024657,7]
[344336415,1733352634127,-241.18022422,0.00024657,7]
[344336417,1733352634137,-1210.56,0.00024657,7]
[344336419,1733352634146,-552.92,0.00024657,7]
[344336420,1733352634156,-547.48,0.00024657,7]
[344336422,1733352634165,-500.0,0.00024657,7]
[344336424,1733352634175,-508.64,0.00024657,7]
[344336426,1733352634185,-500.0,0.00024657,7]
[344336428,1733352634195,-500.0,0.00024657,7]
[344336430,1733352634204,-500.0,0.00024657,7]
[344336432,1733352634215,-500.0,0.00024657,7]
[344336434,1733352634226,-500.0,0.00024657,7]
[344336436,1733352634236,-1704.86,0.00024657,7]
[344336437,1733352634245,-500.0,0.00024657,7]
[344336438,1733352634255,-500.0,0.00024657,7]
[344336439,1733352634265,-500.0,0.00024657,7]
[344336440,1733352634274,-500.0,0.00024657,7]
[344336442,1733352634284,-500.0,0.00024657,7]
[344336444,1733352634294,-500.0,0.00024657,7]
[344336446,1733352634303,-611.98,0.00024657,7]
[344336448,1733352634313,-500.0,0.00024657,7]
[344336450,1733352634322,-2704.62,0.00024657,7]
[344336452,1733352634333,-832.24,0.00024657,7]
[344336454,1733352634342,-548.27,0.00024657,7]
[344336456,1733352634351,-500.0,0.00024657,7]
[344336458,1733352634361,-1327.71,0.00024657,7]
[344336460,1733352634371,-500.0,0.00024657,7]
[344336462,1733352634381,-500.0,0.00024657,7]
[344336464,1733352634392,-500.0,0.00024657,7]
[344336466,1733352634402,-500.0,0.00024657,7]
[344336468,1733352634412,-500.0,0.00024657,7]
[344336470,1733352634423,-725.54,0.00024657,7]
[344336472,1733352634433,-666.44,0.00024657,7]
[344336474,1733352634443,-500.0,0.00024657,7]
[344336476,1733352634452,-500.0,0.00024657,7]
[344336478,1733352634463,-500.0,0.00024657,7]
[344336480,1733352634472,-1526.3,0.00024657,7]
[344336482,1733352634482,-500.0,0.00024657,7]
[344336484,1733352634493,-1080.89,0.00024657,7]
[344336486,1733352634503,-500.0,0.00024657,7]
[344336488,1733352634513,-500.0,0.00024657,7]
[344336489,1733352634522,-506.82,0.00024657,7]
[344336491,1733352634532,-500.0,0.00024657,7]
[344336493,1733352634542,-500.0,0.00024657,7]
[344336495,1733352634552,-500.0,0.00024657,7]
[344336497,1733352634561,-500.0,0.00024657,7]
[344336499,1733352634572,-10893.0,0.00024657,7]
[344336501,1733352634582,-500.0,0.00024657,7]
[344336503,1733352634591,-500.0,0.00024657,7]
[344336505,1733352634601,-500.0,0.00024657,7]
[344336507,1733352634611,-556.9327465,0.00024657,7]
[344336509,1733352634621,-209.951271,0.00024658,2]
[344336511,1733352634630,-380.0,0.00024658,2]
[344336513,1733352634640,-500.0,0.00024673,2]
[344336515,1733352634650,-500.0,0.00024673,2]
[344336517,1733352634659,-500.0,0.00024673,2]
[344336519,1733352634670,-162.43560464,0.00024689,2]
[344336521,1733352634680,-521.19654405,0.00024689,2]
[344336523,1733352634690,-195.99430614,0.00024689,2]
[344336525,1733352634699,-152.0,0.0002469,2]
[344336527,1733352634708,-444.53664039,0.00024831,2]
[344336529,1733352634718,-500.0,0.00024931,7]
[344336531,1733352634727,-500.0,0.00024931,7]
[344336533,1733352634737,-500.0,0.00024931,7]
[344336535,1733352634747,-500.0,0.00024931,7]
[344336537,1733352634756,-500.0,0.00024931,7]
[344336539,1733352634767,-500.0,0.00024931,7]
[344336541,1733352634778,-500.0,0.00024931,7]
[344336543,1733352634787,-500.0,0.00024931,7]
[344336545,1733352634797,-566.68,0.00024931,7]
[344336547,1733352634806,-500.0,0.00024931,7]
[344336549,1733352634816,-500.0,0.00024931,7]
[344336551,1733352634826,-500.0,0.00024931,7]
[344336553,1733352634836,-500.0,0.00024931,7]
[344336555,1733352634846,-500.0,0.00024931,7]
[344336557,1733352634856,-500.0,0.00024931,7]
[344336559,1733352634866,-500.0,0.00024931,7]
[344336561,1733352634876,-500.0,0.00024931,7]
[344336563,1733352634886,-966.88,0.00024931,7]
[344336565,1733352634896,-292.04,0.00024931,7]
[344336567,1733352634906,-500.0,0.00024931,7]
[344336569,1733352634915,-500.0,0.00024931,7]
[344336571,1733352634925,-527.95,0.00024931,7]
[344336573,1733352634936,-500.0,0.00024931,7]
[344336575,1733352634945,-501.38,0.00024931,7]
[344336577,1733352634954,-500.0,0.00024931,7]
[344336579,1733352634964,-500.0,0.00024931,7]
[344336581,1733352634974,-348.81490027,0.00024931,7]
[344336583,1733352634984,-500.0,0.00024931,7]
[344336585,1733352634994,-500.0,0.00024931,7]
[344336587,1733352635003,-500.0,0.00024931,7]
[344336589,1733352635013,-500.0,0.00024931,7]
[344336591,1733352635023,-500.0,0.00024931,7]
[344336593,1733352635033,-672.62,0.00024931,7]
[344336595,1733352635043,-500.0,0.00024931,7]
[344336596,1733352635052,-564.17,0.00024931,7]
[344336598,1733352635061,-500.0,0.00024931,7]
[344336600,1733352635070,-500.0,0.00024931,7]
[344336603,1733352635081,-574.01,0.00024931,7]
[344336605,1733352635091,-500.0,0.00024931,7]
[344336606,1733352635100,-500.0,0.00024931,7]
[344336608,1733352635110,-500.0,0.00024931,7]
[344336610,1733352635120,-500.0,0.00024931,7]
[344336612,1733352635131,-500.0,0.00024931,7]
[344336614,1733352635141,-213.36,0.00024931,7]
[344336616,1733352635151,-4270.46,0.00024931,7]
[344336618,1733352635163,-500.0,0.00024931,7]
[344336620,1733352635173,-2269.79,0.00024931,7]
[344336622,1733352635182,-500.0,0.00024931,7]
[344336624,1733352635192,-800.81,0.00024931,7]
[344336626,1733352635201,-1767.39,0.00024931,7]
[344336628,1733352635211,-619.76,0.00024931,7]
[344336630,1733352635220,-500.0,0.00024931,7]
[344336632,1733352635230,-500.0,0.00024931,7]
[344336634,1733352635241,-607.5,0.00024931,7]
[344336636,1733352635250,-1534.08,0.00024931,7]
[344336638,1733352635260,-500.0,0.00024931,7]
[344336640,1733352635269,-500.0,0.00024931,7]
[344336642,1733352635278,-500.0,0.00024931,7]
[344336644,1733352635288,-174.47,0.00024931,7]
[344336646,1733352635297,-523.19,0.00024931,7]
[344336648,1733352635307,-755.49,0.00024931,7]
[344336650,1733352635316,-302.13545263,0.00024931,7]
[344336651,1733352635326,-500.0,0.00024931,7]
[344336652,1733352635335,-1210.56,0.00024931,7]
[344336653,1733352635344,-552.92,0.00024931,7]
[344336654,1733352635354,-547.48,0.00024931,7]
[344336655,1733352635363,-500.0,0.00024931,7]
[344336656,1733352635372,-508.64,0.00024931,7]
[344336657,1733352635381,-500.0,0.00024931,7]
[344336658,1733352635390,-497.90230679,0.00024931,7]
[344336659,1733352635400,-500.0,0.00024931,7]
[344336660,1733352635410,-500.0,0.00024931,7]
[344336661,1733352635420,-1704.86,0.00024931,7]
[344336662,1733352635429,-500.0,0.00024931,7]
[344336663,1733352635439,-500.0,0.00024931,7]
[344336664,1733352635448,-500.0,0.00024931,7]
[344336665,1733352635458,-500.0,0.00024931,7]
[344336666,1733352635467,-500.0,0.00024931,7]
[344336667,1733352635478,-611.98,0.00024931,7]
[344336668,1733352635489,-2704.62,0.00024931,7]
[344336669,1733352635500,-832.24,0.00024931,7]
[344336670,1733352635510,-548.27,0.00024931,7]
[344336671,1733352635521,-1327.71,0.00024931,7]
[344336672,1733352635530,-410.06766328,0.00024931,7]
[344336673,1733352635539,-500.0,0.00024931,7]
[344336674,1733352635549,-500.0,0.00024931,7]
[344336675,1733352635559,-725.54,0.00024931,7]
[344336676,1733352635568,-666.44,0.00024931,7]
[344336678,1733352635577,-500.0,0.00024931,7]
[344336680,1733352635586,-500.0,0.00024931,7]
[344336681,1733352635596,-1526.3,0.00024931,7]
[344336683,1733352635607,-500.0,0.00024931,7]
[344336685,1733352635616,-1080.89,0.00024931,7]
[344336687,1733352635626,-500.0,0.00024931,7]
[344336689,1733352635636,-500.0,0.00024931,7]
[344336691,1733352635645,-506.82,0.00024931,7]
[344336693,1733352635655,-500.0,0.00024931,7]
[344336695,1733352635664,-500.0,0.00024931,7]
[344336697,1733352635674,-500.0,0.00024931,7]
[344336699,1733352635684,-500.0,0.00024931,7]
[344336701,1733352635693,-10893.0,0.00024931,7]
[344336703,1733352635703,-500.0,0.00024931,7]
[344336705,1733352635712,-500.0,0.00024931,7]
[344336707,1733352635721,-13566.0,0.00025,2]
[344336709,1733352635731,-500.74660377,0.00025095,2]
[344336711,1733352635743,-160.17974169,0.00025095,2]
[344336713,1733352635753,-666.0,0.00025105,2]
[344336716,1733352635763,-420.0,0.00025118,2]
[344336718,1733352635772,-444.53664038,0.00025198,2]
[344336719,1733352635782,-500.0,0.00025205,7]
[344336721,1733352635791,-500.0,0.00025205,7]
[344336724,1733352635802,-566.68,0.00025205,7]
[344336726,1733352635812,-500.0,0.00025205,7]
[344336728,1733352635821,-500.0,0.00025205,7]
[344336730,1733352635831,-500.0,0.00025205,7]
[344336732,1733352635841,-500.0,0.00025205,7]
[344336733,1733352635850,-500.0,0.00025205,7]
[344336736,1733352635861,-500.0,0.00025205,7]
[344336738,1733352635871,-966.88,0.00025205,7]
[344336739,1733352635881,-500.0,0.00025205,7]
[344336741,1733352635892,-527.95,0.00025205,7]
[344336743,1733352635903,-500.0,0.00025205,7]
[344336745,1733352635913,-500.0,0.00025205,7]
[344336748,1733352635925,-448.07452385,0.00025205,7]
[344336750,1733352635938,-500.0,0.00025205,7]
[344336752,1733352635948,-672.62,0.00025205,7]
[344336754,1733352635959,-500.0,0.00025205,7]
[344336756,1733352635969,-574.01,0.00025205,7]
[344336758,1733352635978,-500.0,0.00025205,7]
[344336760,1733352635987,-500.0,0.00025205,7]
[344336762,1733352635997,-500.0,0.00025205,7]
[344336764,1733352636007,-500.0,0.00025205,7]
[344336766,1733352636018,-4270.46,0.00025205,7]
[344336768,1733352636028,-500.0,0.00025205,7]
[344336770,1733352636038,-2269.79,0.00025205,7]
[344336772,1733352636047,-500.0,0.00025205,7]
[344336774,1733352636057,-800.81,0.00025205,7]
[344336776,1733352636067,-1767.39,0.00025205,7]
[344336778,1733352636076,-500.0,0.00025205,7]
[344336780,1733352636086,-607.5,0.00025205,7]
[344336782,1733352636096,-1534.08,0.00025205,7]
[344336784,1733352636106,-500.0,0.00025205,7]
[344336786,1733352636116,-500.0,0.00025205,7]
[344336788,1733352636125,-500.0,0.00025205,7]
[344336790,1733352636135,-755.49,0.00025205,7]
[344336792,1733352636144,-500.0,0.00025205,7]
[344336794,1733352636154,-1210.56,0.00025205,7]
[344336796,1733352636164,-552.92,0.00025205,7]
[344336798,1733352636175,-547.48,0.00025205,7]
[344336800,1733352636184,-500.0,0.00025205,7]
[344336802,1733352636194,-508.64,0.00025205,7]
[344336804,1733352636203,-618.75,0.00025205,7]
[344336806,1733352636214,-500.0,0.00025205,7]
[344336808,1733352636223,-1704.86,0.00025205,7]
[344336810,1733352636233,-500.0,0.00025205,7]
[344336812,1733352636242,-500.0,0.00025205,7]
[344336814,1733352636251,-500.0,0.00025205,7]
[344336816,1733352636261,-500.0,0.00025205,7]
[344336818,1733352636271,-611.98,0.00025205,7]
[344336820,1733352636282,-2704.62,0.00025205,7]
[344336822,1733352636299,-832.24,0.00025205,7]
[344336824,1733352636309,-548.27,0.00025205,7]
[344336826,1733352636318,-1327.71,0.00025205,7]
[344336840,1733352636440,-500.0,0.00025205,7]
[344336842,1733352636451,-725.54,0.00025205,7]
[344336844,1733352636460,-666.44,0.00025205,7]
[344336846,1733352636470,-500.0,0.00025205,7]
[344336848,1733352636484,-1526.3,0.00025205,7]
[344336850,1733352636494,-500.0,0.00025205,7]
[344336852,1733352636503,-1080.89,0.00025205,7]
[344336854,1733352636512,-500.0,0.00025205,7]
[344336856,1733352636523,-500.0,0.00025205,7]
[344336858,1733352636532,-506.82,0.00025205,7]
[344336860,1733352636542,-500.0,0.00025205,7]
[344336862,1733352636551,-164.99794146,0.00025205,7]
[344336864,1733352636561,-500.0,0.00025205,7]
[344336866,1733352636572,-10893.0,0.00025205,7]
[344336868,1733352636582,-500.0,0.00025205,7]
[344336869,1733352636591,-500.0,0.00025205,7]
[344336871,1733352636601,-1000.0,0.00025221,2]
[344336873,1733352636611,-1000.0,0.00025221,2]
[344336875,1733352636621,-502.13838794,0.00025221,2]
[344336877,1733352636631,-6823.33692753,0.00025379,21]
[344336879,1733352636640,-420.0,0.00025456,2]
[344336881,1733352636649,-159.772,0.00025477,10]
[344336884,1733352636660,-500.0,0.00025479,7]
[344336886,1733352636669,-500.0,0.00025479,7]
[344336888,1733352636679,-566.68,0.00025479,7]
[344336889,1733352636688,-500.0,0.00025479,7]
[344336892,1733352636698,-404.91914227,0.00025479,7]
[344336894,1733352636708,-500.0,0.00025479,7]
[344336896,1733352636717,-500.0,0.00025479,7]
[344336898,1733352636727,-500.0,0.00025479,7]
[344336900,1733352636736,-500.0,0.00025479,7]
[344336902,1733352636747,-966.88,0.00025479,7]
[344336904,1733352636757,-500.0,0.00025479,7]
[344336906,1733352636766,-527.95,0.00025479,7]
[344336908,1733352636775,-500.0,0.00025479,7]
[344336910,1733352636785,-500.0,0.00025479,7]
[344336912,1733352636794,-672.62,0.00025479,7]
[344336914,1733352636803,-500.0,0.00025479,7]
[344336916,1733352636813,-574.01,0.00025479,7]
[344336918,1733352636822,-500.0,0.00025479,7]
[344336920,1733352636832,-463.03551518,0.00025479,7]
[344336922,1733352636841,-500.0,0.00025479,7]
[344336924,1733352636851,-4270.46,0.00025479,7]
[344336926,1733352636860,-500.0,0.00025479,7]
[344336928,1733352636869,-2269.79,0.00025479,7]
[344336930,1733352636879,-500.0,0.00025479,7]
[344336932,1733352636889,-800.81,0.00025479,7]
[344336934,1733352636899,-1767.39,0.00025479,7]
[344336936,1733352636908,-500.0,0.00025479,7]
[344336938,1733352636918,-607.5,0.00025479,7]
[344336940,1733352636932,-1534.08,0.00025479,7]
[344336942,1733352636941,-500.0,0.00025479,7]
[344336944,1733352636951,-500.0,0.00025479,7]
[344336946,1733352636960,-500.0,0.00025479,7]
[344336948,1733352636969,-755.49,0.00025479,7]
[344336949,1733352636979,-520.37091311,0.00025479,7]
[344336951,1733352636988,-1210.56,0.00025479,7]
[344336953,1733352636997,-552.92,0.00025479,7]
[344336955,1733352637007,-547.48,0.00025479,7]
[344336957,1733352637016,-500.0,0.00025479,7]
[344336959,1733352637025,-508.64,0.00025479,7]
[344336961,1733352637035,-500.0,0.00025479,7]
[344336963,1733352637045,-1704.86,0.00025479,7]
[344336965,1733352637055,-500.0,0.00025479,7]
[344336967,1733352637064,-500.0,0.00025479,7]
[344336969,1733352637074,-500.0,0.00025479,7]
[344336971,1733352637084,-500.0,0.00025479,7]
[344336973,1733352637093,-611.98,0.00025479,7]
[344336975,1733352637103,-2704.62,0.00025479,7]
[344336978,1733352637113,-548.27,0.00025479,7]
[344336979,1733352637123,-832.24,0.00025479,7]
[344336981,1733352637133,-1327.71,0.00025479,7]
[344336984,1733352637144,-500.0,0.00025479,7]
[344336986,1733352637154,-725.54,0.00025479,7]
[344336988,1733352637163,-666.44,0.00025479,7]
[344336990,1733352637175,-500.0,0.00025479,7]
[344336992,1733352637184,-1526.3,0.00025479,7]
[344336993,1733352637194,-1080.89,0.00025479,7]
[344336995,1733352637203,-500.0,0.00025479,7]
[344336997,1733352637214,-500.0,0.00025479,7]
[344336999,1733352637223,-506.82,0.00025479,7]
[344337001,1733352637232,-500.0,0.00025479,7]
[344337003,1733352637242,-500.0,0.00025479,7]
[344337005,1733352637251,-10893.0,0.00025479,7]
[344337007,1733352637260,-382.70976753,0.00025479,7]
[344337009,1733352637270,-500.0,0.00025479,7]
[344337011,1733352637279,-444.53664038,0.00025566,2]
[344337013,1733352637289,-151.0,0.000257,11]
[344337015,1733352637298,-218.7,0.00025735,4]
[344337017,1733352637308,-500.0,0.00025753,7]
[344337019,1733352637317,-500.0,0.00025753,7]
[344337021,1733352637328,-566.68,0.00025753,7]
[344337023,1733352637337,-500.0,0.00025753,7]
[344337025,1733352637347,-500.0,0.00025753,7]
[344337027,1733352637356,-500.0,0.00025753,7]
[344337029,1733352637366,-500.0,0.00025753,7]
[344337031,1733352637376,-500.0,0.00025753,7]
[344337033,1733352637385,-966.88,0.00025753,7]
[344337035,1733352637395,-500.0,0.00025753,7]
[344337037,1733352637404,-527.95,0.00025753,7]
[344337039,1733352637414,-500.0,0.00025753,7]
[344337041,1733352637425,-500.0,0.00025753,7]
[344337043,1733352637434,-672.62,0.00025753,7]
[344337045,1733352637443,-500.0,0.00025753,7]
[344337047,1733352637453,-574.01,0.00025753,7]
[344337049,1733352637462,-500.0,0.00025753,7]
[344337051,1733352637473,-500.0,0.00025753,7]
[344337053,1733352637483,-4270.46,0.00025753,7]
[344337055,1733352637495,-646.92544147,0.00025753,7]
[344337057,1733352637504,-2269.79,0.00025753,7]
[344337059,1733352637514,-500.0,0.00025753,7]
[344337061,1733352637524,-800.81,0.00025753,7]
[344337063,1733352637535,-1767.39,0.00025753,7]
[344337065,1733352637545,-500.0,0.00025753,7]
[344337067,1733352637555,-607.5,0.00025753,7]
[344337069,1733352637565,-1534.08,0.00025753,7]
[344337071,1733352637574,-649.56,0.00025753,7]
[344337073,1733352637584,-500.0,0.00025753,7]
[344337075,1733352637594,-500.0,0.00025753,7]
[344337077,1733352637604,-755.49,0.00025753,7]
[344337079,1733352637614,-1210.56,0.00025753,7]
[344337081,1733352637624,-552.92,0.00025753,7]
[344337083,1733352637633,-547.48,0.00025753,7]
[344337085,1733352637643,-500.0,0.00025753,7]
[344337087,1733352637652,-508.64,0.00025753,7]
[344337089,1733352637662,-500.0,0.00025753,7]
[344337091,1733352637672,-1704.86,0.00025753,7]
[344337093,1733352637682,-340.67981407,0.00025753,7]
[344337095,1733352637691,-500.0,0.00025753,7]
[344337097,1733352637701,-500.0,0.00025753,7]
[344337099,1733352637711,-239.42,0.00025753,7]
[344337101,1733352637721,-611.98,0.00025753,7]
[344337103,1733352637730,-2704.62,0.00025753,7]
[344337105,1733352637740,-548.27,0.00025753,7]
[344337107,1733352637749,-832.24,0.00025753,7]
[344337109,1733352637758,-1327.71,0.00025753,7]
[344337111,1733352637768,-500.0,0.00025753,7]
[344337113,1733352637777,-725.54,0.00025753,7]
[344337115,1733352637789,-666.44,0.00025753,7]
[344337117,1733352637798,-500.0,0.00025753,7]
[344337119,1733352637808,-1526.3,0.00025753,7]
[344337121,1733352637818,-1080.89,0.00025753,7]
[344337123,1733352637828,-500.0,0.00025753,7]
[344337125,1733352637838,-506.82,0.00025753,7]
[344337127,1733352637847,-500.0,0.00025753,7]
[344337129,1733352637857,-500.0,0.00025753,7]
[344337130,1733352637867,-10893.0,0.00025753,7]
[344337132,1733352637876,-500.0,0.00025753,7]
[344337134,1733352637886,-151.0,0.000259,14]
[344337137,1733352637896,-444.53664038,0.00025933,2]
[344337139,1733352637907,-500.0,0.00026027,7]
[344337141,1733352637917,-500.0,0.00026027,7]
[344337143,1733352637928,-566.68,0.00026027,7]
[344337144,1733352637938,-500.0,0.00026027,7]
[344337146,1733352637948,-500.0,0.00026027,7]
[344337148,1733352637958,-500.0,0.00026027,7]
[344337150,1733352637968,-500.0,0.00026027,7]
[344337152,1733352637978,-500.0,0.00026027,7]
[344337154,1733352637988,-966.88,0.00026027,7]
[344337156,1733352637998,-500.0,0.00026027,7]
[344337158,1733352638008,-527.95,0.00026027,7]
[344337160,1733352638018,-500.0,0.00026027,7]
[344337162,1733352638028,-500.0,0.00026027,7]
[344337164,1733352638037,-672.62,0.00026027,7]
[344337167,1733352638048,-500.0,0.00026027,7]
[344337169,1733352638058,-574.01,0.00026027,7]
[344337170,1733352638068,-271.04221061,0.00026027,7]
[344337172,1733352638077,-500.0,0.00026027,7]
[344337174,1733352638086,-4270.46,0.00026027,7]
[344337177,1733352638096,-2269.79,0.00026027,7]
[344337179,1733352638106,-500.0,0.00026027,7]
[344337181,1733352638115,-800.81,0.00026027,7]
[344337183,1733352638127,-1767.39,0.00026027,7]
[344337186,1733352638139,-500.0,0.00026027,7]
[344337188,1733352638165,-607.5,0.00026027,7]
[344337190,1733352638192,-1534.08,0.00026027,7]
[344337191,1733352638203,-500.0,0.00026027,7]
[344337193,1733352638213,-500.0,0.00026027,7]
[344337195,1733352638223,-755.49,0.00026027,7]
[344337198,1733352638233,-1210.56,0.00026027,7]
[344337200,1733352638243,-552.92,0.00026027,7]
[344337202,1733352638253,-547.48,0.00026027,7]
[344337203,1733352638262,-500.0,0.00026027,7]
[344337205,1733352638272,-508.64,0.00026027,7]
[344337208,1733352638282,-500.0,0.00026027,7]
[344337210,1733352638292,-1704.86,0.00026027,7]
[344337212,1733352638301,-453.49915106,0.00026027,7]
[344337214,1733352638309,-229.23,0.00026027,7]
[344337215,1733352638320,-611.98,0.00026027,7]
[344337218,1733352638330,-2704.62,0.00026027,7]
[344337219,1733352638339,-548.27,0.00026027,7]
[344337222,1733352638349,-832.24,0.00026027,7]
[344337223,1733352638358,-1327.71,0.00026027,7]
[344337225,1733352638367,-614.64,0.00026027,7]
[344337227,1733352638376,-725.54,0.00026027,7]
[344337229,1733352638386,-666.44,0.00026027,7]
[344337231,1733352638396,-500.0,0.00026027,7]